fUSD/lending_fUSD_20250502
["ID","MTS","AMOUNT","RATE_DAILY","PERIOD"]
[359660384,1746227449911,-450.0,0.00019982,2]
[359660385,1746227449920,-450.0,0.00019982,2]
[359660386,1746227449929,-450.0,0.00019982,2]
[359660387,1746227449940,-450.0,0.00019982,2]
[359660388,1746227449949,-450.0,0.00019982,2]
[359660389,1746227449959,-424.60009718,0.00019982,2]
[359660390,1746227449969,-450.0,0.00019982,2]
[359660391,1746227449978,-450.0,0.00019982,2]
[359660392,1746227449987,-508.05,0.00019982,2]
[359660393,1746227449997,-450.0,0.00019982,2]
[359660394,1746227450006,-450.0,0.00019982,2]
[359660395,1746227450016,-450.0,0.00019982,2]
[359660396,1746227450025,-2544.85,0.00019982,2]
[359660397,1746227450034,-540.15711062,0.00019982,2]
[359660398,1746227450044,-450.0,0.00019982,2]
[359660399,1746227450053,-450.0,0.00019982,2]
[359660400,1746227450063,-464.64,0.00019982,2]
[359660401,1746227450072,-1055.79,0.00019982,2]
[359660402,1746227450082,-450.0,0.00019982,2]
[359660403,1746227450091,-450.0,0.00019982,2]
[359660404,1746227450101,-450.0,0.00019982,2]
[359660405,1746227450110,-450.0,0.00019982,2]
[359660406,1746227450120,-450.0,0.00019982,2]
[359660407,1746227450129,-450.0,0.00019982,2]
[359660408,1746227450139,-1097.98,0.00019982,2]
[359660409,1746227450148,-450.0,0.00019982,2]
[359660410,1746227450158,-450.0,0.00019982,2]
[359660411,1746227450167,-450.0,0.00019982,2]
[359660412,1746227450177,-450.0,0.00019982,2]
[359660413,1746227450187,-450.0,0.00019982,2]
[359660414,1746227450196,-450.0,0.00019982,2]
[359660415,1746227450206,-450.0,0.00019982,2]
[359660416,1746227450215,-500.0,0.00019982,2]
[359660417,1746227450225,-150.0,0.00019983,2]
[359660418,1746227450234,-500.0,0.00019984,2]
[359660419,1746227450243,-500.0,0.00019984,2]
[359660420,1746227450253,-441.0,0.00019984,2]
[359660421,1746227450263,-500.0,0.00019984,2]
[359660422,1746227450272,-500.0,0.00019984,2]
[359660423,1746227450281,-521.73356972,0.00019984,2]
[359660424,1746227450290,-500.0,0.00019984,2]
[359660425,1746227450301,-500.0,0.00019984,2]
[359660426,1746227450310,-500.0,0.00019984,2]
[359660427,1746227450319,-150.0,0.00019984,2]
[359660428,1746227450329,-150.0,0.00019984,2]
[359660429,1746227450339,-437.0,0.00019984,2]
[359660430,1746227450348,-500.0,0.00019984,2]
[359660431,1746227450358,-500.0,0.00019984,2]
[359660432,1746227450367,-405.21,0.00019985,2]
[359660433,1746227450378,-150.0,0.00019986,2]
[359660434,1746227450387,-7873.2761609,0.00019986,2]
[359660435,1746227450396,-20910.3032943,0.00019986,2]
[359660436,1746227450406,-174536.0678457,0.00019986,2]
[359660437,1746227450415,-399.6540367,0.00019986,2]
[359660438,1746227450425,-51901.3210664,0.00019986,2]
[359660439,1746227450435,-500.0,0.00019988,2]
[359660440,1746227450444,-150.0,0.00019988,2]
[359660441,1746227450453,-1074.92705239,0.0001999,2]
[359660442,1746227450463,-1074.92705239,0.0001999,2]
[359660443,1746227450472,-500.0,0.00019999,2]
[359660444,1746227450482,-675.05638042,0.00019999,2]
[359660445,1746227450491,-500.0,0.00019999,2]
[359660446,1746227450501,-300.0,0.00019999,2]
[359660447,1746227450511,-300.0,0.00019999,2]
[359660448,1746227450520,-259.59690718,0.0002,2]
[359660449,1746227450529,-539939.9504825,0.0002,2]
[359660450,1746227450539,-2764107.99825516,0.0002,2]
[359660451,1746227450915,-432.16,0.0002,2]
[359660452,1746227451157,-587.95,0.00019707,2]
[359660453,1746227451167,-189.68480546,0.0002,2]
[359660454,1746227451469,-450.0,0.00019707,2]
[359660455,1746227451478,-450.0,0.00019707,2]
[359660456,1746227451487,-2653.89989039,0.000199,2]
[359660457,1746227451497,-462.86,0.00019981,2]
[359660458,1746227451507,-450.0,0.00019981,2]
[359660459,1746227451516,-364.69010961,0.0002,2]
[359660460,1746227451528,-2920.27,0.0002,2]
[359660464,1746227679149,237.94,0.00019009,2]
[359660479,1746228340352,488.61,0.00016843,2]
[359660480,1746228340570,488.61,0.00019106,2]
[359660481,1746228356406,17175.48727969,6.94e-05,2]
[359660482,1746228368440,2406.12221413,8e-05,2]
[359660483,1746228383478,1000.0,0.00018784,2]
[359660484,1746228432067,1683.35991904,0.00015,2]
[359660485,1746228435613,2336.04243038,0.00015,2]
[359660486,1746228438007,205.0,9.8e-05,2]
[359660487,1746228441765,1642.98815676,0.0001305,2]
[359660505,1746228631833,-506.57,0.00019605,2]
[359660506,1746228631844,-491.06720059,0.00019605,2]
[359660507,1746228631857,-1183.45094967,0.00019605,2]
[359660508,1746228631867,-250.0,0.00019606,2]
[359660509,1746228631876,-1326.94994524,0.00019606,2]
[359660510,1746228631885,-2181.08815026,0.00019638,2]
[359660512,1746228631895,-1326.94994519,0.00019639,2]
[359660514,1746228631904,-300.0,0.0001967,2]
[359660515,1746228631913,-1851.8431827,0.00019671,2]
[359660517,1746228631929,-329.24496756,0.00019671,2]
[359660519,1746228631939,-57.63900738,0.00019671,2]
[359660521,1746228631960,-1269.31093781,0.00019671,2]
[359660522,1746228631969,-1200.0,0.00019688,2]
[359660524,1746228631979,-179.0,0.00019688,2]
[359660525,1746228631988,-500.0,0.00019689,2]
[359660526,1746228631999,-565.9390749,0.00019689,2]
[359660527,1746228632009,-263.26997136,0.00019689,2]
[359660528,1746228632018,-565.9390749,0.00019689,2]
[359660529,1746228632028,-565.9390749,0.00019689,2]
[359660530,1746228632038,-565.9390749,0.00019689,2]
[359660531,1746228632047,-565.9390749,0.00019689,2]
[359660532,1746228632056,-565.9390749,0.00019689,2]
[359660533,1746228632066,-565.9390749,0.00019689,2]
[359660534,1746228632075,-565.9390749,0.00019689,2]
[359660535,1746228632085,-565.9390749,0.00019689,2]
[359660536,1746228632095,-565.9390749,0.00019689,2]
[359660537,1746228632104,-565.9390749,0.00019689,2]
[359660538,1746228632114,-565.9390749,0.00019689,2]
[359660539,1746228632123,-129.83593489,0.00019689,2]
[359660540,1746228632135,-359.56063052,0.00019689,2]
[359660541,1746228632148,-76.54250949,0.00019689,2]
[359660542,1746228632162,-565.9390749,0.00019689,2]
[359660543,1746228632173,-565.9390749,0.00019689,2]
[359660544,1746228632183,-565.9390749,0.00019689,2]
[359660545,1746228632194,-565.9390749,0.00019689,2]
[359660546,1746228632204,-565.9390749,0.00019689,2]
[359660547,1746228632214,-565.9390749,0.00019689,2]
[359660548,1746228632223,-565.9390749,0.00019689,2]
[359660549,1746228632233,-565.9390749,0.00019689,2]
[359660550,1746228632243,-565.9390749,0.00019689,2]
[359660551,1746228632253,-565.9390749,0.00019689,2]
[359660552,1746228632263,-565.9390749,0.00019689,2]
[359660553,1746228632273,-357.90626953,0.00019689,2]
[359660554,1746228632294,-208.03280537,0.00019689,2]
[359660555,1746228632304,-565.9390749,0.00019689,2]
[359660556,1746228632314,-565.9390749,0.00019689,2]
[359660558,1746228632324,-409.42742341,0.00019689,2]
[359660560,1746228632335,-156.51165149,0.00019689,2]
[359660561,1746228632345,-565.9390749,0.00019689,2]
[359660562,1746228632354,-565.9390749,0.00019689,2]
[359660563,1746228632364,-565.9390749,0.00019689,2]
[359660564,1746228632373,-565.9390749,0.00019689,2]
[359660565,1746228632382,-565.9390749,0.00019689,2]
[359660566,1746228632392,-565.9390749,0.00019689,2]
[359660567,1746228632402,-565.9390749,0.00019689,2]
[359660568,1746228632411,-329.98365314,0.00019689,2]
[359660737,1746228637847,-235.95542176,0.00019689,2]
[359660738,1746228637856,-565.9390749,0.00019689,2]
[359660739,1746228637866,-565.9390749,0.00019689,2]
[359660740,1746228637875,-565.9390749,0.00019689,2]
[359660741,1746228637884,-565.9390749,0.00019689,2]
[359660742,1746228637893,-565.9390749,0.00019689,2]
[359660743,1746228637903,-310.18242715,0.00019689,2]
[359660744,1746228638165,-255.75664775,0.00019689,2]
[359660745,1746228638176,-565.9390749,0.00019689,2]
[359660746,1746228638186,-565.9390749,0.00019689,2]
[359660747,1746228638195,-922.41344887,0.00019689,2]
[359660748,1746228638206,-922.41344887,0.00019689,2]
[359660749,1746228638215,-922.41344887,0.00019689,2]
[359660750,1746228638224,-922.41344887,0.00019689,2]
[359660751,1746228638236,-922.41344887,0.00019689,2]
[359660752,1746228638245,-922.41344887,0.00019689,2]
[359660753,1746228638255,-922.41344887,0.00019689,2]
[359660754,1746228638265,-922.41344887,0.00019689,2]
[359660756,1746228638274,-922.41344887,0.00019689,2]
[359660757,1746228638283,-922.41344887,0.00019689,2]
[359660758,1746228638292,-922.41344887,0.00019689,2]
[359660759,1746228638301,-922.41344887,0.00019689,2]
[359660760,1746228638311,-922.41344887,0.00019689,2]
[359660762,1746228638320,-922.41344887,0.00019689,2]
[359660763,1746228638330,-922.41344887,0.00019689,2]
[359660764,1746228638341,-922.41344887,0.00019689,2]
[359660765,1746228638350,-922.41344887,0.00019689,2]
[359660766,1746228638361,-922.41344887,0.00019689,2]
[359660767,1746228638370,-922.41344887,0.00019689,2]
[359660768,1746228638380,-922.41344887,0.00019689,2]
[359660769,1746228638390,-922.41344887,0.00019689,2]
[359660770,1746228638401,-922.41344887,0.00019689,2]
[359660771,1746228638410,-922.41344887,0.00019689,2]
[359660772,1746228638419,-922.41344887,0.00019689,2]
[359660773,1746228638429,-922.41344887,0.00019689,2]
[359660774,1746228638439,-922.41344887,0.00019689,2]
[359660775,1746228638449,-922.41344887,0.00019689,2]
[359660776,1746228638458,-922.41344887,0.00019689,2]
[359660777,1746228638468,-922.41344887,0.00019689,2]
[359660778,1746228638477,-922.41344887,0.00019689,2]
[359660779,1746228638487,-922.41344887,0.00019689,2]
[359660780,1746228638496,-929.21017955,0.00019689,2]
[359660781,1746228638506,-929.21017955,0.00019689,2]
[359660782,1746228638515,-929.21017955,0.00019689,2]
[359660783,1746228638524,-929.21017955,0.00019689,2]
[359660784,1746228638533,-929.21017955,0.00019689,2]
[359660785,1746228638543,-929.21017955,0.00019689,2]
[359660786,1746228638552,-929.21017955,0.00019689,2]
[359660787,1746228638563,-588.93926091,0.00019689,2]
[359660789,1746228640078,-340.27091864,0.00019689,2]
[359660790,1746228640088,-929.21017955,0.00019689,2]
[359660791,1746228640097,-929.21017955,0.00019689,2]
[359660792,1746228640107,-929.21017955,0.00019689,2]
[359660793,1746228640116,-929.21017955,0.00019689,2]
[359660794,1746228640126,-929.21017955,0.00019689,2]
[359660795,1746228640135,-318.34885053,0.00019689,2]
[359660796,1746228640147,-610.86132902,0.00019689,2]
[359660797,1746228640161,-929.21017955,0.00019689,2]
[359660798,1746228640171,-929.21017955,0.00019689,2]
[359660799,1746228640181,-929.21017955,0.00019689,2]
[359660800,1746228640191,-929.21017955,0.00019689,2]
[359660801,1746228640202,-929.21017955,0.00019689,2]
[359660802,1746228640211,-9575.62788624,0.00019692,2]
[359660803,1746228640223,-7637.487055,0.00019692,2]
[359660804,1746228640480,-23487.4667586,0.00019692,2]
[359660805,1746228640489,-200.0,0.00019697,2]
[359660806,1746228640499,-2181.08815026,0.00019703,2]
[359660807,1746228640508,-450.0,0.00019704,2]
[359660808,1746228640517,-450.0,0.00019704,2]
[359660809,1746228640527,-234.39097713,0.00019704,2]
[359660810,1746228640536,-450.0,0.00019704,2]
[359660811,1746228640545,-450.0,0.00019704,2]
[359660812,1746228640555,-450.0,0.00019704,2]
[359660813,1746228640564,-450.0,0.00019704,2]
[359660814,1746228640573,-450.0,0.00019704,2]
[359660815,1746228640583,-450.0,0.00019704,2]
[359660816,1746228640592,-511.94,0.00019704,2]
[359660817,1746228640601,-450.0,0.00019704,2]
[359660818,1746228640610,-1326.94994519,0.00019704,2]
[359660819,1746228640619,-450.0,0.00019704,2]
[359660820,1746228640628,-450.0,0.00019704,2]
[359660821,1746228640637,-5018.56,0.00019704,2]
[359660822,1746228640646,-524.92,0.00019704,2]
[359660823,1746228640656,-1016.39,0.00019704,2]
[359660824,1746228640666,-464.24,0.00019704,2]
[359660825,1746228640675,-450.0,0.00019704,2]
[359660826,1746228640684,-450.0,0.00019704,2]
[359660827,1746228640694,-450.0,0.00019704,2]
[359660828,1746228640703,-887.939394,0.00019704,2]
[359660829,1746228640712,-450.0,0.00019704,2]
[359660830,1746228640722,-1617.28,0.00019704,2]
[359660831,1746228640731,-450.0,0.00019704,2]
[359660832,1746228640740,-635.156915,0.00019704,2]
[359660833,1746228640749,-450.0,0.00019704,2]
[359660834,1746228640759,-450.0,0.00019704,2]
[359660835,1746228640768,-450.0,0.00019704,2]
[359660836,1746228640778,-450.0,0.00019704,2]
[359660837,1746228640788,-450.0,0.00019705,2]
[359660838,1746228640797,-450.0,0.00019705,2]
[359660839,1746228640807,-450.0,0.00019705,2]
[359660840,1746228640816,-450.0,0.00019705,2]
[359660842,1746228640826,-250.0,0.00019705,2]
[359660843,1746228640835,-450.0,0.00019705,2]
[359660844,1746228640844,-500.0,0.00019705,2]
[359660845,1746228640853,-579.31727258,0.00019705,2]
[359660846,1746228640863,-450.0,0.00019705,2]
[359660847,1746228640872,-450.0,0.00019705,2]
[359660848,1746228640881,-450.0,0.00019705,2]
[359660849,1746228640890,-450.0,0.00019705,2]
[359660850,1746228640900,-450.0,0.00019705,2]
[359660851,1746228640909,-450.0,0.00019705,2]
[359660852,1746228640918,-450.0,0.00019705,2]
[359660853,1746228640928,-450.0,0.00019705,2]
[359660854,1746228640938,-450.0,0.00019705,2]
[359660855,1746228640947,-450.0,0.00019705,2]
[359660856,1746228640956,-450.0,0.00019705,2]
[359660857,1746228640965,-450.0,0.00019705,2]
[359660858,1746228640974,-450.0,0.00019705,2]
[359660859,1746228640984,-450.0,0.00019705,2]
[359660860,1746228640993,-450.0,0.00019705,2]
[359660861,1746228641003,-450.0,0.00019705,2]
[359660862,1746228641012,-150.0,0.00019705,2]
[359660863,1746228641021,-450.0,0.00019705,2]
[359660864,1746228641030,-450.0,0.00019705,2]
[359660865,1746228641040,-450.0,0.00019705,2]
[359660866,1746228641049,-450.0,0.00019705,2]
[359660867,1746228641058,-450.0,0.00019705,2]
[359660868,1746228641067,-450.0,0.00019705,2]
[359660869,1746228641077,-597.91,0.00019705,2]
[359660870,1746228641086,-450.0,0.00019705,2]
[359660871,1746228641095,-450.0,0.00019705,2]
[359660872,1746228641105,-450.0,0.00019705,2]
[359660873,1746228641114,-450.0,0.00019705,2]
[359660874,1746228641124,-450.0,0.00019705,2]
[359660875,1746228641133,-450.0,0.00019705,2]
[359660876,1746228641142,-450.0,0.00019705,2]
[359660877,1746228641154,-450.0,0.00019705,2]
[359660878,1746228641163,-450.0,0.00019705,2]
[359660879,1746228641172,-450.0,0.00019705,2]
[359660880,1746228641183,-450.0,0.00019705,2]
[359660881,1746228641193,-450.0,0.00019705,2]
[359660882,1746228641203,-450.0,0.00019705,2]
[359660883,1746228641212,-450.0,0.00019705,2]
[359660884,1746228641221,-450.0,0.00019705,2]
[359660885,1746228641232,-450.0,0.00019705,2]
[359660886,1746228641241,-450.0,0.00019705,2]
[359660887,1746228641251,-188.84194376,0.00019705,2]
[359660888,1746228641261,-450.0,0.00019705,2]
[359660889,1746228641270,-843.55,0.00019705,2]
[359660890,1746228641279,-302.32396757,0.00019705,2]
[359660891,1746228641289,-450.0,0.00019705,2]
[359660892,1746228641298,-450.0,0.00019705,2]
[359660893,1746228641307,-450.0,0.00019705,2]
[359660894,1746228641316,-450.0,0.00019705,2]
[359660895,1746228641327,-453.96,0.00019705,2]
[359660896,1746228641336,-450.0,0.00019705,2]
[359660897,1746228641346,-450.0,0.00019705,2]
[359660898,1746228641355,-660.98,0.00019705,2]
[359660899,1746228641364,-467.07,0.00019705,2]
[359660900,1746228641373,-450.0,0.00019705,2]
[359660901,1746228641384,-450.0,0.00019705,2]
[359660902,1746228641393,-450.0,0.00019705,2]
[359660903,1746228641403,-450.0,0.00019705,2]
[359660904,1746228641412,-450.0,0.00019705,2]
[359660905,1746228641422,-649.62,0.00019705,2]
[359660906,1746228641433,-450.0,0.00019705,2]
[359660907,1746228641442,-450.0,0.00019705,2]
[359660908,1746228641452,-450.0,0.00019705,2]
[359660909,1746228641461,-454.68,0.00019705,2]
[359660910,1746228641471,-554.09941886,0.00019705,2]
[359660911,1746228641480,-450.0,0.00019705,2]
[359660912,1746228641489,-450.0,0.00019705,2]
[359660913,1746228641499,-450.0,0.00019705,2]
[359660914,1746228641508,-450.0,0.00019705,2]
[359660915,1746228641518,-450.0,0.00019705,2]
[359660916,1746228641527,-450.0,0.00019705,2]
[359660917,1746228641536,-450.0,0.00019705,2]
[359660918,1746228641545,-450.0,0.00019705,2]
[359660919,1746228641554,-450.0,0.00019705,2]
[359660920,1746228641564,-450.0,0.00019705,2]
[359660921,1746228641575,-450.0,0.00019705,2]
[359660922,1746228641584,-450.0,0.00019705,2]
[359660923,1746228641594,-450.0,0.00019705,2]
[359660924,1746228641603,-450.0,0.00019705,2]
[359660925,1746228641614,-450.0,0.00019705,2]
[359660926,1746228641623,-450.0,0.00019705,2]
[359660927,1746228641634,-450.0,0.00019705,2]
[359660928,1746228641643,-495.08,0.00019705,2]
[359660929,1746228641653,-450.0,0.00019705,2]
[359660930,1746228641662,-450.0,0.00019705,2]
[359660931,1746228641671,-450.0,0.00019705,2]
[359660932,1746228641681,-450.0,0.00019705,2]
[359660933,1746228641691,-450.0,0.00019705,2]
[359660934,1746228641700,-450.0,0.00019705,2]
[359660935,1746228641709,-450.0,0.00019705,2]
[359660936,1746228641718,-450.0,0.00019705,2]
[359660937,1746228641728,-450.0,0.00019705,2]
[359660938,1746228641737,-450.0,0.00019705,2]
[359660939,1746228641747,-450.0,0.00019705,2]
[359660940,1746228641756,-450.0,0.00019705,2]
[359660941,1746228641765,-450.0,0.00019705,2]
[359660942,1746228641774,-450.0,0.00019705,2]
[359660943,1746228641783,-450.0,0.00019705,2]
[359660944,1746228641792,-450.0,0.00019705,2]
[359660945,1746228641802,-450.0,0.00019705,2]
[359660946,1746228641811,-583.03,0.00019705,2]
[359660947,1746228641821,-450.0,0.00019705,2]
[359660948,1746228641830,-450.0,0.00019705,2]
[359660949,1746228641839,-450.0,0.00019705,2]
[359660950,1746228641849,-450.0,0.00019705,2]
[359660951,1746228641858,-282.44482249,0.00019705,2]
[359660952,1746228641867,-450.0,0.00019705,2]
[359660953,1746228641877,-450.0,0.00019705,2]
[359660954,1746228641886,-450.0,0.00019705,2]
[359660955,1746228641895,-450.0,0.00019705,2]
[359660956,1746228641904,-450.0,0.00019705,2]
[359660957,1746228641914,-587.92,0.00019705,2]
[359660958,1746228641923,-450.0,0.00019705,2]
[359660959,1746228641934,-226.52449439,0.00019705,2]
[359660960,1746228641944,-450.0,0.00019705,2]
[359660961,1746228641954,-450.0,0.00019705,2]
[359660962,1746228641965,-450.0,0.00019705,2]
[359660963,1746228641974,-450.0,0.00019705,2]
[359660964,1746228641984,-450.0,0.00019705,2]
[359660965,1746228641993,-450.0,0.00019705,2]
[359660966,1746228642003,-450.0,0.00019705,2]
[359660967,1746228642012,-450.0,0.00019705,2]
[359660968,1746228642021,-450.0,0.00019705,2]
[359660969,1746228642030,-450.0,0.00019705,2]
[359660970,1746228642041,-450.0,0.00019705,2]
[359660971,1746228642050,-450.0,0.00019705,2]
[359660972,1746228642060,-479.878237,0.00019705,2]
[359660973,1746228642069,-450.0,0.00019705,2]
[359660974,1746228642079,-450.0,0.00019705,2]
[359660975,1746228642088,-450.0,0.00019705,2]
[359660976,1746228642098,-450.0,0.00019705,2]
[359660977,1746228642108,-690.97,0.00019705,2]
[359660978,1746228642118,-450.0,0.00019705,2]
[359660979,1746228642127,-543.0,0.00019705,2]
[359660980,1746228642136,-450.0,0.00019705,2]
[359660981,1746228642146,-597.29392894,0.00019705,2]
[359660982,1746228642157,-170.76658812,0.00019705,2]
[359660983,1746228642167,-450.0,0.00019705,2]
[359660984,1746228642176,-450.0,0.00019705,2]
[359660985,1746228642187,-820.81,0.00019705,2]
[359660986,1746228642198,-909.85,0.00019705,2]
[359660987,1746228642208,-450.0,0.00019705,2]
[359660988,1746228642218,-450.0,0.00019705,2]
[359660989,1746228642228,-450.0,0.00019705,2]
[359660990,1746228642238,-7244.8,0.00019705,2]
[359660991,1746228642248,-450.0,0.00019705,2]
[359660992,1746228642258,-450.0,0.00019705,2]
[359660993,1746228642268,-450.0,0.00019705,2]
[359660994,1746228642277,-580.74,0.00019705,2]
[359660995,1746228642287,-450.0,0.00019705,2]
[359660996,1746228642296,-450.0,0.00019705,2]
[359660997,1746228642306,-489.79,0.00019705,2]
[359660998,1746228642315,-450.0,0.00019705,2]
[359660999,1746228642325,-528.38,0.00019705,2]
[359661000,1746228642335,-471.04,0.00019705,2]
[359661001,1746228642344,-450.0,0.00019705,2]
[359661002,1746228642353,-764.3,0.00019705,2]
[359661003,1746228642363,-504.41864297,0.00019705,2]
[359661004,1746228642374,-450.0,0.00019705,2]
[359661005,1746228642383,-450.0,0.00019705,2]
[359661006,1746228642393,-450.0,0.00019705,2]
[359661007,1746228642404,-450.0,0.00019705,2]
[359661008,1746228642413,-450.0,0.00019705,2]
[359661009,1746228642423,-450.0,0.00019705,2]
[359661010,1746228642432,-450.0,0.00019705,2]
[359661011,1746228642441,-453.68,0.00019705,2]
[359661012,1746228642452,-450.0,0.00019705,2]
[359661013,1746228642461,-450.0,0.00019705,2]
[359661014,1746228642471,-450.0,0.00019705,2]
[359661015,1746228642480,-1054.56,0.00019705,2]
[359661016,1746228642490,-4547.91,0.00019705,2]
[359661017,1746228642500,-452.93,0.00019705,2]
[359661018,1746228642510,-237.0578191,0.00019705,2]
[359661019,1746228642520,-462.26,0.00019705,2]
[359661020,1746228642529,-523.02,0.00019705,2]
[359661021,1746228642539,-450.0,0.00019705,2]
[359661022,1746228642548,-4221.32,0.00019705,2]
[359661023,1746228642557,-5829.98,0.00019705,2]
[359661024,1746228642567,-484.62,0.00019705,2]
[359661025,1746228642576,-450.0,0.00019705,2]
[359661026,1746228642586,-468.26,0.00019705,2]
[359661027,1746228642595,-300.0,0.00019705,2]
[359661028,1746228642605,-531.46,0.00019705,2]
[359661029,1746228642614,-450.0,0.00019705,2]
[359661030,1746228642624,-450.0,0.00019705,2]
[359661031,1746228642633,-540.07,0.00019705,2]
[359661032,1746228642642,-930.35,0.00019705,2]
[359661033,1746228642651,-450.0,0.00019705,2]
[359661034,1746228642660,-450.0,0.00019705,2]
[359661035,1746228642670,-450.0,0.00019705,2]
[359661036,1746228642679,-669.07,0.00019705,2]
[359661037,1746228642689,-450.0,0.00019705,2]
[359661038,1746228642698,-450.0,0.00019705,2]
[359661039,1746228642708,-558.61,0.00019705,2]
[359661040,1746228642717,-450.0,0.00019705,2]
[359661041,1746228642727,-4529.4,0.00019705,2]
[359661042,1746228642736,-450.0,0.00019705,2]
[359661043,1746228642746,-450.0,0.00019705,2]
[359661045,1746228642755,-876.92,0.00019705,2]
[359661046,1746228642764,-450.0,0.00019705,2]
[359661048,1746228642774,-495.33,0.00019705,2]
[359661050,1746228642783,-548.94,0.00019705,2]
[359661052,1746228642792,-598.83,0.00019705,2]
[359661054,1746228642802,-450.0,0.00019705,2]
[359661055,1746228642811,-5379.39,0.00019705,2]
[359661056,1746228642821,-450.0,0.00019705,2]
[359661057,1746228642830,-450.0,0.00019705,2]
[359661058,1746228642839,-450.0,0.00019705,2]
[359661059,1746228642849,-450.0,0.00019705,2]
[359661060,1746228642859,-694.98,0.00019705,2]
[359661061,1746228642869,-450.0,0.00019705,2]
[359661062,1746228642878,-450.0,0.00019705,2]
[359661063,1746228642888,-450.0,0.00019705,2]
[359661064,1746228642897,-29737.83,0.00019705,2]
[359661065,1746228642907,-450.0,0.00019705,2]
[359661066,1746228642916,-450.0,0.00019705,2]
[359661067,1746228642926,-450.0,0.00019705,2]
[359661068,1746228642936,-625.67874033,0.00019705,2]
[359661069,1746228642945,-450.0,0.00019705,2]
[359661071,1746228642955,-450.0,0.00019705,2]
[359661073,1746228642964,-2274.67,0.00019705,2]
[359661074,1746228642973,-450.0,0.00019705,2]
[359661077,1746228642983,-1237.89,0.00019705,2]
[359661078,1746228642992,-450.0,0.00019705,2]
[359661080,1746228643001,-1947.13,0.00019705,2]
[359661082,1746228643011,-530.14,0.00019705,2]
[359661084,1746228643020,-450.0,0.00019705,2]
[359661085,1746228643029,-450.0,0.00019705,2]
[359661086,1746228643039,-561.79,0.00019705,2]
[359661087,1746228643048,-450.0,0.00019705,2]
[359661088,1746228643058,-17165.61,0.00019705,2]
[359661089,1746228643068,-450.0,0.00019705,2]
[359661090,1746228643080,-450.0,0.00019705,2]
[359661091,1746228643090,-450.0,0.00019705,2]
[359661092,1746228643099,-490.59,0.00019705,2]
[359661093,1746228643109,-450.0,0.00019705,2]
[359661094,1746228643118,-450.0,0.00019705,2]
[359661095,1746228643130,-450.0,0.00019705,2]
[359661096,1746228643140,-2655.5,0.00019705,2]
[359661097,1746228643150,-709.86,0.00019705,2]
[359661098,1746228643163,-450.0,0.00019705,2]
[359661099,1746228643173,-450.0,0.00019705,2]
[359661100,1746228643183,-521.65,0.00019705,2]
[359661101,1746228643192,-450.0,0.00019705,2]
[359661102,1746228643203,-450.0,0.00019705,2]
[359661103,1746228643212,-1560.92,0.00019705,2]
[359661104,1746228643221,-450.0,0.00019705,2]
[359661105,1746228643233,-450.0,0.00019705,2]
[359661106,1746228643243,-450.0,0.00019705,2]
[359661107,1746228643253,-450.0,0.00019705,2]
[359661108,1746228643262,-450.0,0.00019705,2]
[359661109,1746228643272,-537.58,0.00019705,2]